bitfinex/quotes_SOLUSD_20240628
["timestamp","ask_amount","ask_price","bid_price","bid_amount"]
[1719561342632,6.8743,145.47,145.38,22.7396]
[1719561342814,31.85,145.48,145.38,22.7396]
[1719561343208,6.8748,145.46,145.38,22.7396]
[1719561343437,26.8743,145.47,145.38,22.7396]
[1719561344008,20.0,145.47,145.38,22.7396]
[1719561344240,26.8743,145.47,145.38,22.7396]
[1719561346037,20.0,145.47,145.38,22.7396]
[1719561346234,6.8755,145.45,145.38,22.7396]
[1719561346638,6.8752,145.45,145.38,22.7396]
[1719561346924,6.8747,145.46,145.38,22.7396]
[1719561347119,20.0,145.45,145.38,22.7396]
[1719561347740,20.0,145.45,145.39,45.0]
[1719561347953,20.0,145.46,145.39,45.0]
[1719561348254,26.8748,145.46,145.39,45.0]
[1719561349845,20.0,145.46,145.39,45.0]
[1719561350037,26.8748,145.46,145.39,45.0]
[1719561350551,6.8752,145.45,145.39,45.0]
[1719561351348,20.0,145.46,145.39,45.0]
[1719561351929,6.8747,145.47,145.39,45.0]
[1719561352749,31.85,145.51,145.39,45.0]
[1719561352944,20.0,145.5,145.39,45.0]
[1719561353330,6.8733,145.49,145.39,45.0]
[1719561354725,20.0,145.5,145.39,45.0]
[1719561355033,6.8748,145.46,145.38,22.7396]
[1719561355233,6.8753,145.45,145.38,22.7396]
[1719561355945,49.0345,145.48,145.38,22.7396]
[1719561356250,20.0,145.47,145.38,22.7396]
[1719561356451,6.8758,145.44,145.38,22.7396]
[1719561356745,31.85,145.45,145.35,15.5673]
[1719561356953,20.0,145.44,145.35,15.5673]
[1719561357133,6.8761,145.43,145.35,15.5673]
[1719561357933,6.8772,145.41,145.35,15.5673]
[1719561358141,6.8767,145.42,145.35,15.5673]
[1719561358654,31.85,145.43,145.35,15.5673]
[1719561358836,20.0,145.42,145.35,15.5673]
[1719561359149,6.8781,145.39,145.35,15.5673]
[1719561359334,6.8776,145.4,145.35,15.5673]
[1719561360335,26.8782,145.39,145.35,15.5673]
[1719561360643,6.8793,145.37,145.31,15.1398]
[1719561361044,31.85,145.4,145.31,15.1398]
[1719561361240,6.8793,145.37,145.31,15.1398]
[1719561361552,31.85,145.4,145.31,15.1398]
[1719561361851,20.0,145.39,145.31,15.1398]
[1719561362356,26.8783,145.39,145.31,15.1398]
[1719561362649,20.0,145.39,145.31,15.1398]
[1719561362841,26.878,145.39,145.31,15.1398]
[1719561363435,6.8785,145.38,145.31,15.1398]
[1719561363753,20.0,145.37,145.31,15.1398]
[1719561364432,20.0,145.38,145.31,15.1398]
[1719561364625,26.8785,145.38,145.31,15.1398]
[1719561365243,6.879,145.37,145.31,15.1398]
[1719561365651,26.8785,145.38,145.31,15.1398]
[1719561366037,20.0,145.38,145.31,15.1398]
[1719561366455,26.8785,145.38,145.31,15.1398]
[1719561366832,6.879,145.37,145.31,15.1398]
[1719561367156,20.0,145.38,145.31,15.1398]
[1719561367455,6.8795,145.36,145.31,15.1398]
[1719561368142,26.878,145.39,145.31,15.1398]
[1719561369352,6.8785,145.38,145.31,15.1398]
[1719561369527,26.8781,145.39,145.31,15.1398]
[1719561369733,20.0,145.39,145.31,15.1398]
[1719561370631,286.45,145.43,145.31,15.1398]
[1719561370840,17.1884,145.45,145.31,15.1398]
[1719561370841,26.8768,145.42,145.31,15.1398]
[1719561371560,20.0,145.42,145.31,15.1398]
[1719561371737,6.8772,145.41,145.31,15.1398]
[1719561371932,6.8776,145.4,145.31,15.1398]
[1719561372352,6.877,145.42,145.31,15.1398]
[1719561373941,6.877,145.42,145.32,6.5993]
[1719561374462,20.0,145.41,145.32,6.5993]
[1719561375363,6.8779,145.4,145.32,6.5993]
[1719561375554,49.0411,145.43,145.32,6.5993]
[1719561375764,6.8781,145.39,145.32,6.5993]
[1719561377476,6.879,145.37,145.32,6.5993]
[1719561378669,6.8785,145.38,145.32,6.5993]
[1719561378973,20.0,145.37,145.32,6.5993]
[1719561379471,26.8791,145.37,145.32,6.5993]
[1719561380172,20.0,145.37,145.32,6.5993]
[1719561380963,26.8791,145.37,145.32,6.5993]
[1719561381381,20.0,145.37,145.32,6.5993]
[1719561381545,20.0,145.37,145.31,15.1398]
[1719561381739,6.8794,145.36,145.31,15.1398]
[1719561383374,26.8791,145.37,145.31,15.1398]
[1719561384173,20.0,145.37,145.31,15.1398]
[1719561384659,6.879,145.37,145.31,15.1398]
[1719561387663,6.8785,145.38,145.31,15.1398]
[1719561387869,20.0,145.37,145.31,15.1398]
[1719561388394,20.0,145.38,145.31,15.1398]
[1719561390765,26.8786,145.38,145.31,15.1398]
[1719561392480,20.0,145.38,145.31,15.1398]
[1719561394504,26.8785,145.38,145.31,15.1398]
[1719561394691,15.94,145.37,145.31,31.0798]
[1719561397701,26.8785,145.38,145.31,15.1398]
[1719561397702,15.94,145.36,145.31,15.1398]
[1719561399387,20.0,145.38,145.31,15.1398]
[1719561399591,20.0,145.39,145.31,15.1398]
[1719561399792,15.94,145.36,145.31,15.1398]
[1719561400094,15.94,145.37,145.31,31.0798]
[1719561400461,15.94,145.36,145.31,31.0798]
[1719561400884,15.94,145.36,145.31,15.1398]
[1719561401376,6.8779,145.4,145.31,31.0798]
[1719561401574,15.94,145.37,145.31,31.0798]
[1719561401768,15.94,145.36,145.31,31.0798]
[1719561403096,6.8782,145.39,145.31,31.0798]
[1719561403270,15.94,145.36,145.31,31.0798]
[1719561403668,15.94,145.38,145.32,15.94]
[1719561403974,20.0,145.41,145.31,15.1398]
[1719561403975,20.0,145.41,145.34,15.94]
[1719561404179,15.94,145.4,145.35,6.3411]
[1719561405167,35.94,145.41,145.35,6.3411]
[1719561405382,15.94,145.41,145.36,15.94]
[1719561405593,6.8762,145.43,145.36,15.94]
[1719561405794,15.94,145.42,145.36,15.94]
[1719561406202,6.8762,145.43,145.36,15.94]
[1719561406383,15.94,145.42,145.36,15.94]
[1719561406580,22.8166,145.42,145.35,6.3411]
[1719561406769,22.8166,145.42,145.35,13.2461]
[1719561406770,15.94,145.41,145.35,13.2461]
[1719561409597,6.8757,145.44,145.35,13.2461]
[1719561409901,20.0,145.43,145.36,15.4621]
[1719561410094,35.94,145.43,145.38,15.94]
[1719561410471,6.8747,145.46,145.36,15.4621]
[1719561410472,6.8743,145.47,145.4,15.94]
[1719561410784,26.8747,145.46,145.39,15.94]
[1719561410993,15.94,145.44,145.38,15.94]
[1719561411301,15.94,145.44,145.36,15.4621]
[1719561411302,15.94,145.41,145.36,15.4621]
[1719561411504,15.94,145.41,145.36,31.4021]
[1719561411672,15.94,145.42,145.36,31.4021]
[1719561411871,15.94,145.42,145.36,15.4621]
[1719561412072,15.94,145.42,145.36,31.4021]
[1719561414892,15.94,145.43,145.37,15.94]
[1719561415895,15.94,145.43,145.38,15.94]
[1719561416098,20.0,145.46,145.39,15.94]
[1719561416310,15.94,145.44,145.39,15.94]
[1719561416510,15.94,145.45,145.39,15.94]
[1719561416690,20.0,145.44,145.39,15.94]
[1719561418090,35.94,145.45,145.39,15.94]
[1719561418805,15.94,145.44,145.38,15.94]
[1719561418980,6.8761,145.43,145.36,15.4621]
[1719561419184,20.0,145.45,145.38,15.94]
[1719561419384,15.94,145.44,145.38,15.94]
[1719561419684,15.94,145.43,145.37,15.94]
[1719561419880,20.0,145.48,145.38,15.94]
[1719561420497,15.94,145.43,145.37,15.94]
[1719561420704,15.94,145.42,145.36,15.4621]
[1719561420910,15.94,145.42,145.36,31.4021]
[1719561421927,15.94,145.42,145.37,15.94]
[1719561423405,15.94,145.42,145.36,15.4621]
[1719561423812,15.94,145.42,145.36,31.4021]
[1719561424338,22.8167,145.42,145.36,31.4021]
[1719561424494,15.94,145.42,145.36,31.4021]
[1719561424890,15.8993,145.45,145.32,15.8474]
[1719561425085,15.94,145.38,145.32,31.7874]
[1719561425311,15.94,145.38,145.32,15.8474]
[1719561425618,15.94,145.37,145.32,15.8474]
[1719561427220,6.8784,145.39,145.29,31.014]
[1719561427221,15.94,145.35,145.29,31.014]
[1719561428211,15.94,145.34,145.29,31.014]
[1719561428914,15.94,145.34,145.29,15.074]
[1719561429218,15.94,145.34,145.29,31.014]
[1719561429895,15.94,145.34,145.29,15.074]
[1719561430095,15.94,145.34,145.29,31.014]
[1719561431219,6.879,145.37,145.29,31.014]
[1719561431414,15.94,145.34,145.29,31.014]
[1719561431615,15.94,145.34,145.3,45.0]
[1719561432205,15.94,145.35,145.3,45.0]
[1719561432411,20.0,145.36,145.3,45.0]
[1719561432412,20.0,145.36,145.3,60.94]
[1719561432720,15.94,145.38,145.3,45.0]
[1719561432929,15.94,145.38,145.33,15.94]
[1719561433128,15.94,145.38,145.34,45.0]
[1719561433799,6.8774,145.41,145.34,45.0]
[1719561434123,15.94,145.38,145.34,45.0]
[1719561435102,254.6,145.42,145.34,45.0]
[1719561435322,20.0,145.41,145.34,60.94]
[1719561435622,15.94,145.4,145.34,45.0]
[1719561435829,15.94,145.4,145.35,15.94]
[1719561436131,15.94,145.4,145.34,45.0]
[1719561436132,15.94,145.39,145.36,45.0]
[1719561436302,15.94,145.39,145.34,45.0]
[1719561438920,15.94,145.39,145.34,60.94]
[1719561440636,15.94,145.39,145.34,45.0]
[1719561440813,15.94,145.39,145.34,60.94]
[1719561441219,20.0,145.41,145.34,60.94]
[1719561441435,15.94,145.4,145.34,60.94]
[1719561442148,20.0,145.41,145.34,60.94]
[1719561442347,15.94,145.4,145.34,60.94]
[1719561442709,15.94,145.4,145.35,15.94]
[1719561442943,6.8762,145.43,145.36,45.0]
[1719561443110,25.0,145.53,145.38,15.94]
[1719561443111,16.1724,145.47,145.38,15.94]
[1719561443318,15.94,145.44,145.39,45.0]
[1719561445738,15.94,145.43,145.39,45.0]
[1719561445918,15.94,145.42,145.39,45.0]
[1719561446117,15.94,145.41,145.39,45.0]
[1719561446325,6.8765,145.43,145.39,45.0]
[1719561446622,6.8756,145.45,145.39,45.0]
[1719561446820,20.0,145.44,145.39,45.0]
[1719561447016,26.8757,145.44,145.39,45.0]
[1719561447648,6.8761,145.43,145.39,45.0]
[1719561447849,26.8758,145.44,145.38,45.0]
[1719561448647,15.94,145.4,145.37,45.0]
[1719561448838,15.94,145.41,145.36,45.0]
[1719561449151,15.94,145.41,145.36,60.94]
[1719561450029,15.94,145.41,145.36,45.0]
[1719561450953,15.94,145.41,145.36,60.94]
[1719561451323,15.94,145.41,145.36,45.0]
[1719561451922,15.94,145.4,145.36,45.0]
[1719561452717,20.0,145.44,145.36,60.94]
[1719561452930,15.94,145.43,145.37,15.94]
[1719561453132,20.0,145.42,145.38,45.0]
[1719561453351,15.94,145.43,145.38,45.0]
[1719561453549,26.8753,145.45,145.38,45.0]
[1719561453917,15.94,145.43,145.38,45.0]
[1719561454547,20.0,145.45,145.38,45.0]
[1719561454747,15.94,145.43,145.38,45.0]
[1719561454916,26.8753,145.45,145.38,60.94]
[1719561455246,15.94,145.44,145.38,60.94]
[1719561456047,26.8753,145.45,145.4,15.94]
[1719561456048,20.0,145.45,145.4,15.94]
[1719561456354,35.94,145.46,145.41,45.0]
[1719561456648,15.94,145.46,145.41,45.0]
[1719561456946,20.0,145.45,145.41,60.94]
[1719561457835,15.94,145.46,145.41,60.94]
[1719561458151,17.1815,145.51,145.41,60.94]
[1719561458152,6.8733,145.49,145.41,60.94]
[1719561458335,15.94,145.47,145.41,60.94]
[1719561460350,26.8738,145.48,145.41,60.94]
[1719561460554,35.94,145.48,145.42,15.94]
[1719561460733,35.94,145.48,145.43,45.0]
[1719561461138,20.0,145.48,145.43,45.0]
[1719561461340,35.94,145.48,145.43,60.94]
[1719561461872,20.0,145.48,145.43,60.94]
[1719561462044,35.94,145.48,145.43,60.94]
[1719561462637,42.8139,145.48,145.43,45.0]
[1719561463159,15.94,145.47,145.43,45.0]
[1719561465032,22.8142,145.47,145.43,45.0]
[1719561465454,15.94,145.46,145.42,45.0]
[1719561465659,6.8742,145.47,145.42,45.0]
[1719561465864,15.94,145.47,145.42,45.0]
[1719561469348,20.0,145.48,145.42,45.0]
[1719561469668,15.94,145.48,145.42,60.94]
[1719561472575,15.94,145.47,145.42,60.94]
[1719561472750,15.94,145.47,145.41,15.94]
[1719561473067,15.94,145.44,145.39,21.8062]
[1719561473272,15.94,145.44,145.39,37.7462]
[1719561474873,15.94,145.44,145.4,45.0]
[1719561475977,15.94,145.45,145.4,45.0]
[1719561478990,15.94,145.44,145.4,45.0]
[1719561479281,15.94,145.43,145.37,15.94]
[1719561479590,15.94,145.38,145.35,16.2047]
[1719561481869,15.94,145.39,145.35,16.2047]
[1719561482383,6.8761,145.44,145.36,15.94]
[1719561482551,15.94,145.42,145.36,15.94]
[1719561482946,15.94,145.42,145.35,16.2047]
[1719561483359,15.94,145.42,145.36,45.0]
[1719561485785,15.9366,145.46,145.36,45.0]
[1719561485962,15.94,145.44,145.39,15.94]
[1719561486155,22.8113,145.46,145.4,45.0]
[1719561486374,26.44629136,145.45,145.4,45.0]
[1719561486682,22.38629136,145.44,145.4,45.0]
[1719561486855,15.94,145.44,145.4,45.0]
[1719561487053,15.94,145.44,145.39,45.0]
[1719561487278,20.0,145.45,145.39,45.0]
[1719561487584,22.38629484,145.44,145.39,45.0]
[1719561487785,15.94,145.44,145.39,45.0]
[1719561488759,20.0,145.45,145.39,60.94]
[1719561488977,6.44629341,145.44,145.4,15.94]
[1719561489298,20.0,145.46,145.41,45.0]
[1719561489468,22.8157,145.44,145.41,45.0]
[1719561489773,22.8157,145.44,145.38,6.6442]
[1719561489774,6.44628842,145.43,145.38,22.5842]
[1719561489953,6.44628842,145.43,145.39,45.0]
[1719561491855,6.8747,145.46,145.39,45.0]
[1719561492092,15.94,145.44,145.39,45.0]
[1719561492387,26.44631059,145.43,145.35,16.2047]
[1719561492555,26.44631059,145.43,145.36,15.94]
[1719561492556,6.44631059,145.42,145.36,15.94]
[1719561492755,6.44631059,145.42,145.35,16.2047]
[1719561492756,22.38631059,145.42,145.37,15.94]
[1719561492963,15.94,145.42,145.37,15.94]
[1719561493755,15.94,145.43,145.38,45.0]
[1719561494082,15.94,145.45,145.39,15.94]
[1719561494384,6.44628925,145.44,145.4,45.0]
[1719561494681,15.94,145.45,145.4,45.0]
[1719561494875,15.94,145.45,145.4,60.94]
[1719561495285,15.94,145.46,145.4,60.94]
[1719561495470,6.44626974,145.45,145.4,60.94]
[1719561496276,22.38626974,145.45,145.4,60.94]
[1719561496582,15.94,145.45,145.4,60.94]
[1719561496883,6.44626689,145.44,145.4,60.94]
[1719561497660,6.44626689,145.44,145.4,45.0]
[1719561497957,15.94,145.45,145.4,45.0]
[1719561498167,15.94,145.45,145.4,60.94]
[1719561498566,6.44626211,145.44,145.4,60.94]
[1719561499366,22.8158,145.44,145.4,45.0]
[1719561500561,22.8158,145.44,145.39,45.0]
[1719561500762,22.38628308,145.43,145.35,21.86946954]
[1719561500970,15.94,145.46,145.35,16.2047]
[1719561500971,15.94,145.4,145.35,16.2047]
[1719561501180,22.38628308,145.39,145.35,16.2047]
[1719561501458,15.94,145.4,145.35,16.2047]
[1719561501980,15.94,145.39,145.35,16.2047]
[1719561502756,6.8772,145.41,145.35,16.2047]
[1719561502962,6.44641151,145.4,145.35,32.1447]
[1719561503271,15.94,145.42,145.37,15.94]
[1719561503479,15.1566,145.44,145.37,15.94]
[1719561503658,42.38633658,145.43,145.37,15.94]
[1719561503860,20.0,145.43,145.37,15.94]
[1719561504058,35.94,145.43,145.38,45.0]
[1719561504988,6.44634484,145.42,145.38,45.0]
[1719561505987,35.94,145.43,145.38,45.0]
[1719561506193,6.44634293,145.42,145.38,45.0]
[1719561507772,6.44634293,145.42,145.38,60.94]
[1719561508280,42.8163,145.43,145.38,45.0]
[1719561508482,22.3863354,145.42,145.38,45.0]
[1719561508666,15.94,145.42,145.37,45.0]
[1719561509885,42.8163,145.43,145.37,60.94]
[1719561510084,6.44634008,145.42,145.37,60.94]
[1719561510274,42.8163,145.43,145.38,15.94]
[1719561510588,42.8163,145.43,145.39,45.0]
[1719561512496,6.44631842,145.42,145.39,45.0]
[1719561512883,6.44631842,145.42,145.38,45.0]
[1719561513391,42.8163,145.43,145.38,45.0]
[1719561513689,6.8743,145.47,145.38,45.0]
[1719561513988,42.38624428,145.46,145.41,15.94]
[1719561514201,6.44624496,145.45,145.41,15.94]
[1719561514360,42.8148,145.46,145.42,45.0]
[1719561514566,6.44625197,145.45,145.42,45.0]
[1719561515070,42.8148,145.46,145.42,45.0]
[1719561515477,20.0,145.46,145.42,45.0]
[1719561515684,6.44623238,145.45,145.42,45.0]
[1719561516068,35.94,145.46,145.42,45.0]
[1719561516373,6.8736,145.49,145.42,60.94]
[1719561516579,26.44622402,145.48,145.42,60.94]
[1719561516779,6.44622402,145.47,145.42,60.94]
[1719561517483,22.38622402,145.47,145.42,60.94]
[1719561517794,6.44622402,145.46,145.42,60.94]
[1719561517993,6.44622402,145.46,145.42,45.0]
[1719561518176,15.94,145.45,145.42,45.0]
[1719561518378,15.94,145.46,145.41,45.0]
[1719561518582,6.44624013,145.45,145.41,60.94]
[1719561519871,15.94,145.47,145.41,60.94]
[1719561520064,6.44624238,145.46,145.41,45.0]
[1719561520279,6.4462392,145.45,145.41,60.94]
[1719561520474,22.3862392,145.46,145.41,60.94]
[1719561520683,6.4462392,145.45,145.41,60.94]
[1719561521067,6.8742,145.48,145.41,60.94]
[1719561521369,15.94,145.46,145.41,60.94]
[1719561521905,6.8734,145.49,145.41,60.94]
[1719561522078,15.94,145.47,145.41,60.94]
[1719561522980,15.94,145.48,145.42,15.94]
[1719561523191,6.44621713,145.47,145.43,45.0]
[1719561524298,15.94,145.48,145.43,45.0]
[1719561524682,6.8734,145.49,145.43,45.0]
[1719561524881,42.38619302,145.48,145.43,45.0]
[1719561525083,35.94,145.48,145.43,45.0]
[1719561525994,6.44620215,145.47,145.43,45.0]
[1719561526186,35.94,145.48,145.43,45.0]
[1719561526385,20.0,145.48,145.43,45.0]
[1719561526697,35.94,145.48,145.43,45.0]
[1719561528201,6.4462112,145.47,145.43,45.0]
[1719561529576,15.94,145.5,145.45,15.94]
[1719561529791,6.4461541,145.49,145.46,45.0]
[1719561529976,22.8127,145.51,145.46,45.0]
[1719561530285,26.44614347,145.5,145.46,60.94]
[1719561530490,20.0,145.5,145.46,60.94]
[1719561530884,6.8718,145.53,145.48,15.94]
[1719561531090,6.8718,145.53,145.49,45.0]
[1719561531495,261.471,145.54,145.49,45.0]
[1719561531688,277.411,145.54,145.49,45.0]
[1719561533301,22.8115,145.53,145.49,45.0]
[1719561533500,6.872,145.52,145.48,45.0]
[1719561533801,15.94,145.51,145.48,45.0]
[1719561534009,15.94,145.51,145.47,45.0]
[1719561534778,261.471,145.54,145.47,60.94]
[1719561534980,15.94,145.52,145.47,60.94]
[1719561536197,15.94,145.52,145.47,45.0]
[1719561536917,15.94,145.52,145.47,60.94]
[1719561537081,22.677,145.55,145.47,60.94]
[1719561537285,15.94,145.53,145.48,15.94]
[1719561537481,15.94,145.53,145.49,45.0]
[1719561538903,15.94,145.52,145.49,45.0]
[1719561539104,20.0,145.54,145.48,45.0]
[1719561539405,15.94,145.53,145.48,45.0]
[1719561539818,20.0,145.54,145.48,60.94]
[1719561539982,35.94,145.54,145.48,60.94]
[1719561540182,35.94,145.54,145.49,15.94]
[1719561540381,6.8699,145.57,145.5,45.0]
[1719561540603,15.94,145.55,145.5,45.0]
[1719561540794,6.8699,145.57,145.5,60.94]
[1719561540993,15.94,145.55,145.5,60.94]
[1719561541305,6.8691,145.58,145.5,76.2232]
[1719561541602,26.8691,145.58,145.5,60.2832]
[1719561541777,20.0,145.58,145.5,66.3372]
[1719561541983,35.94,145.58,145.52,15.94]
[1719561542183,15.94,145.58,145.52,15.94]
[1719561542377,15.94,145.58,145.5,66.3372]
[1719561542680,15.94,145.58,145.52,15.94]
[1719561543288,15.2968,145.63,145.55,15.94]
[1719561543489,15.94,145.61,145.54,6.899]
[1719561543705,15.94,145.61,145.55,15.94]
[1719561544390,6.8672,145.62,145.55,15.94]
[1719561544391,15.94,145.6,145.55,15.94]
[1719561544590,15.94,145.6,145.53,6.899]
[1719561544795,15.2968,145.63,145.54,20.0]
[1719561544796,15.94,145.59,145.54,20.0]
[1719561544995,15.94,145.58,145.54,20.0]
[1719561545679,15.94,145.59,145.53,15.94]
[1719561545907,15.94,145.59,145.54,20.0]
[1719561546290,22.1639,145.63,145.54,20.0]
[1719561546491,15.94,145.59,145.54,35.94]
[1719561547091,15.94,145.58,145.54,20.0]
[1719561547601,15.94,145.58,145.52,15.94]
[1719561547804,15.94,145.58,145.53,15.94]
[1719561549687,15.94,145.58,145.54,15.5738]
[1719561550015,15.94,145.62,145.56,15.94]
[1719561550324,15.94,145.6,145.54,15.5738]
[1719561550503,15.94,145.59,145.54,15.5738]
[1719561550687,6.8672,145.62,145.54,31.5138]
[1719561551009,15.94,145.59,145.54,31.5138]
[1719561551208,6.8672,145.62,145.54,31.5138]
[1719561551387,15.94,145.6,145.54,31.5138]
[1719561551593,15.94,145.6,145.55,15.94]
[1719561552313,6.8662,145.64,145.55,15.94]
[1719561552486,15.94,145.61,145.55,22.839]
[1719561552687,15.94,145.61,145.56,15.94]
[1719561553710,6.8663,145.64,145.56,15.94]
[1719561554014,15.94,145.61,145.56,15.94]
[1719561554395,15.94,145.61,145.55,22.839]
[1719561554807,15.94,145.6,145.54,31.5138]
[1719561555005,15.94,145.59,145.51,31.9317]
[1719561555211,6.8681,145.6,145.53,15.94]
[1719561555411,6.8676,145.61,145.53,15.94]
[1719561555586,15.94,145.59,145.54,15.94]
[1719561557015,15.94,145.58,145.53,15.94]
[1719561559105,20.0,145.64,145.53,15.94]
[1719561559461,15.94,145.58,145.53,15.94]
[1719561560010,15.94,145.58,145.51,15.9917]
[1719561560221,15.94,145.56,145.52,20.0]
[1719561560397,15.94,145.56,145.51,15.9917]
[1719561561226,6.869,145.59,145.51,15.9917]
[1719561561404,15.94,145.55,145.51,15.9917]
[1719561563207,15.94,145.55,145.47,32.4493]
[1719561563410,15.94,145.55,145.5,15.94]
[1719561564527,15.94,145.55,145.48,20.0]
[1719561564833,15.94,145.55,145.5,15.94]
[1719561565341,15.94,145.56,145.51,15.94]
[1719561565807,15.94,145.56,145.48,20.0]
[1719561566006,15.94,145.56,145.51,15.94]
[1719561566422,6.8686,145.59,145.51,15.94]
[1719561566607,15.94,145.56,145.51,15.94]
[1719561566805,15.94,145.56,145.48,20.0]
[1719561567118,15.94,145.56,145.51,15.94]
[1719561567926,15.94,145.56,145.5,15.94]
[1719561568105,6.8692,145.58,145.5,15.94]
[1719561568308,15.94,145.56,145.5,15.94]
[1719561569912,15.94,145.56,145.48,20.0]
[1719561570237,15.94,145.54,145.48,20.0]
[1719561570439,6.8703,145.56,145.48,20.0]
[1719561570610,15.94,145.53,145.48,35.94]
[1719561571018,15.94,145.53,145.48,20.0]
[1719561571242,15.94,145.53,145.48,35.94]
[1719561571443,15.94,145.53,145.48,20.0]
[1719561571643,15.94,145.53,145.48,35.94]
[1719561572442,15.94,145.53,145.48,20.0]
[1719561572945,15.94,145.52,145.47,16.5093]
[1719561573646,15.94,145.52,145.47,32.4493]
[1719561575119,15.94,145.52,145.47,16.5093]
[1719561575417,15.94,145.52,145.47,32.4493]
[1719561577233,15.94,145.52,145.47,16.5093]
[1719561578827,15.94,145.52,145.47,32.4493]
[1719561580026,15.94,145.52,145.47,16.5093]
[1719561580338,15.94,145.5,145.43,15.7686]
[1719561580524,15.94,145.5,145.45,15.94]
[1719561580920,15.94,145.51,145.46,15.94]
[1719561581154,15.94,145.5,145.45,15.94]
[1719561581453,15.94,145.5,145.43,15.7686]
[1719561581759,15.94,145.5,145.45,15.94]
[1719561582659,6.8714,145.53,145.45,15.94]
[1719561582949,6.8714,145.53,145.43,22.6676]
[1719561582950,15.94,145.51,145.43,21.26725398]
[1719561583131,15.94,145.51,145.46,15.94]
[1719561584353,6.8709,145.54,145.49,15.94]
[1719561584354,15.94,145.54,145.49,15.94]
[1719561585237,6.8695,145.57,145.49,15.2823]
[1719561585440,15.94,145.54,145.49,31.2223]
[1719561586845,15.94,145.55,145.49,31.2223]
[1719561587158,15.94,145.55,145.5,1.37208726]
[1719561587359,20.0,145.56,145.5,15.94]
[1719561587529,15.94,145.56,145.5,15.94]
[1719561588022,26.8691,145.58,145.5,15.94]
[1719561588223,15.94,145.56,145.5,15.94]
[1719561588425,26.8691,145.58,145.5,15.94]
[1719561588626,15.94,145.56,145.51,15.94]
[1719561589242,15.94,145.56,145.5,15.94]
[1719561589430,22.81,145.56,145.5,15.94]
[1719561589624,20.0,145.58,145.45,22.5979]
[1719561589827,15.94,145.52,145.46,20.0]